Workbook

Sheet Табель
A1: № з/п | B1: Прізвище І.Б. | C1: Професія (посада) | D1: ЛЮТИЙ | BT1: Відпрацьовано | BX1: Штрафи | BY1: Прізвище І.Б. | BZ1: Выходной | CB1: р.д.
D2: 1 | E2: Об'єкт/ Завдання | F2: 2 | G2: Об'єкт/ Завдання | H2: 3 | I2: Об'єкт/ Завдання | J2: 4 | K2: Об'єкт/ Завдання | L2: 5 | M2: Об'єкт/ Завдання | N2: 6 | O2: Об'єкт/ Завдання | P2: 7 | Q2: Об'єкт/ Завдання | R2: 8 | S2: Об'єкт/ Завдання | T2: 9 | U2: Об'єкт/ Завдання | V2: 10 | W2: Об'єкт/ Завдання | X2: 11 | Y2: Об'єкт/ Завдання | Z2: 12 | AA2: Об'єкт/ Завдання | AB2: 13 | AC2: Об'єкт/ Завдання | AD2: 14 | AE2: Об'єкт/ Завдання | AF2: 15 | AG2: Об'єкт/ Завдання | AH2: 16 | AI2: Об'єкт/ Завдання | AJ2: 17 | AK2: Об'єкт/ Завдання | AL2: 18 | AM2: Об'єкт/ Завдання | AN2: 19 | AO2: Об'єкт/ Завдання | AP2: 20 | AQ2: Об'єкт/ Завдання | AR2: 21 | AS2: Об'єкт/ Завдання | AT2: 22 | AU2: Об'єкт/ Завдання | AV2: 23 | AW2: Об'єкт/ Завдання | AX2: 24 | AY2: Об'єкт/ Завдання | AZ2: 25 | BA2: Об'єкт/ Завдання | BB2: 26 | BC2: Об'єкт/ Завдання | BD2: 27 | BE2: Об'єкт/ Завдання | BF2: 28 | BG2: Об'єкт/ Завдання | BH2: 29 | BI2: Об'єкт/ Завдання | BJ2: 30 | BK2: Об'єкт/ Завдання | BL2: 31 | BM2: Об'єкт/ Завдання | BN2: 29 | BO2: Об'єкт/ Завдання | BP2: 30 | BQ2: Об'єкт/ Завдання | BR2: 31 | BS2: Об'єкт/ Завдання | BT2: Кількість робочих днів у мысяці | BU2: Фактично | BV2: Вихідні
A3: 1 | B3: Ландичев О.В. | C3: Головний інженер | D3: 5 | E3: ТП881 | F3: 4 | G3: Каманина | L3: 4 | M3: инфоком | N3: 4 | O3: Каманина | P3: 4 | Q3: Инфокс | BT3: 20 | BU3: =СумЦвет(D3:BS3,$CB$1)+ СумЦвет(D4:BS4,$BZ$1) ->  | BV3: =СумЦвет(D3:BM3,$CB$1)+СумЦвет(D4:BM4,$BZ$1) ->  | BY3: Ландичев О.В.
D4: 3 | E4: Офис | F4: 4 | G4: Новотех | L4: 4 | M4: Офис | N4: 4 | O4: Офис | P4: 4 | Q4: Офис | BZ4: =СумЦвет((D3,F3,H3,J3,L3,N3,P3,R3,T3,V3,X3,Z3,AB3,AD3,AF3,AH3,AJ3,AL3,AN3,AP3,AR3,AT3,AV3,AX3,AZ3,BB3,BD3,BF3,BN3,BP3,BR3),$BZ$1) -> 0
A5: 2 | B5: Іванов О.В. | C5: Прораб | D5: 8.5 | E5: Новотех | F5: 8.5 | G5: Новотех | L5: 8.5 | M5: Новотех | N5: 8.5 | O5: Новотех | P5: 8.5 | Q5: Новотех | BT5: 20 | BU5: =СумЦвет(D5:BS5,$CB$1) ->  | BV5: =СумЦвет(D5:BS5,$BZ$1) -> 0 | BY5: Іванов О.В.

Sheet Февраль (hidden)
A1: № | B1: Сотрудник | C1: Оклад | D1: Ставка | E1: Ставки | J1: Предоплата | K1: Аванс | N1: Выплачено | O1: Недоплата/переплата | P1: Остаток | S1: Выплачено | U1: Недоплата/переплата | V1: Доп. Выплаты | W1: Штрафы | X1: Премия | Y1: Отпускные | Z1: ИТОГО ЗА МЕСЯЦ
E3: В день | F3: В выходной день | G3: Переработка | I3: В больн./отпуск
G4: раб. часы | H4: вых. часы | K4: официально | L4: на руки | M4: всего | N4: наличными | P4: официально | Q4: на руки | R4: всего | S4: наличными | T4: на карточку
A5: ЯНВАРЬ
A6: 1 | B6: Ржепишевский К.К. | C6: 4200 | D6: 0 | E6: =D6/Табель!$BT$3 -> 0 | F6: =E6*1.5 -> 0 | G6: =E6/8 -> 0 | H6: 0 | I6: =E6/2 -> 0 | J6: 0 | L6: 0 | M6: =K6 -> 0 | N6: 0 | O6: 0 | Q6: 0 | R6: =S6+T6+P6 -> 0 | S6: 0 | T6: =IF((Q6-S6)<0, 0,Q6-S6) -> 0 | U6: =Q6-(S6+T6) -> 0 | X6: 0 | Z6: =J6+M6+R6+V6+X6+Y6 -> 0 | AA6: Ржепишевский К.К.
A7: 2 | B7: Ржепишевский Е.К. | C7: 4050 | D7: 0 | E7: =D7/Табель!$BT$3 -> 0 | F7: 0 | G7: 0 | H7: 0 | I7: 0 | J7: 0 | L7: 0 | M7: =K7 -> 0 | N7: 0 | O7: 0 | Q7: 0 | R7: =S7+T7+P7 -> 0 | S7: 0 | T7: =IF((Q7-S7)<0, 0,Q7-S7) -> 0 | U7: =Q7-(S7+T7) -> 0 | X7: 0 | Z7: =J7+M7+R7+V7+X7+Y7 -> 0 | AA7: Ржепишевский Е.К.
A8: 3 | B8: Островский А.Н. | C8: 4100 | D8: 0 | E8: =D8/Табель!$BT$3 -> 0 | F8: 0 | G8: 0 | H8: 0 | I8: 0 | J8: 0 | L8: 0 | M8: 0 | N8: 0 | O8: 0 | Q8: 0 | R8: 0 | S8: 0 | T8: 0 | U8: 0 | X8: 0 | Z8: =J8+M8+R8+V8+X8+Y8 -> 0 | AA8: Островский А.Н.
A9: 4 | B9: Лежанин В. | C9: 4700 | D9: 0 | E9: =D9/Табель!$BT$3 -> 0 | F9: =E9*1.5 -> 0 | G9: =E9/8 -> 0 | H9: =F9/8 -> 0 | I9: =E9/2 -> 0 | J9: 0 | L9: =D9*0.25-J9 -> 0 | M9: =J9+K9+L9 -> 0 | N9: 0 | O9: 0 | Q9: 0 | R9: 0 | S9: 0 | T9: 0 | U9: 0 | X9: 0 | Z9: =J9+M9+R9+V9+X9+Y9 -> 0 | AA9: =B9 -> Лежанин В.
A10: 5 | B10: Деркач О. М. | C10: 3723 | D10: 0 | E10: =D10/Табель!$BT$3 -> 0 | F10: =E10*1.5 -> 0 | G10: =E10/8 -> 0 | H10: =F10/8 -> 0 | I10: =E10/2 -> 0 | J10: 0 | L10: 0 | M10: 0 | N10: 0 | O10: 0 | Q10: 0 | R10: =S10+T10+P10 -> 0 | S10: 0 | T10: =IF((Q10-S10)<0, 0,Q10-S10) -> 0 | U10: =Q10-(S10+T10) -> 0 | X10: 0 | Z10: =J10+M10+R10+V10+X10+Y10 -> 0 | AA10: Деркач О. М.
A11: Інженери
A12: 1 | B12: Ландычев О.В. | C12: 4000 | D12: 20000 | E12: =D12/Табель!$BT$3 -> 1000 | F12: 1500 | G12: 125 | H12: 187.5 | I12: =E12/2 -> 500 | J12: 0 | L12: =D12/2-K12-J12 -> 10000 | M12: =J12+K12+L12 -> 10000 | O12: =M12-J12-K12-N12 -> 10000 | Q12: =D12/2-P12+O12-#REF! ->  | S12: 0 | X12: 0 | Z12: =J12+M12+R12+V12+X12+Y12 ->  | AA12: Ландычев О.В.
A13: 2 | B13: Иванов О.В. | C13: 0 | D13: 15000 | E13: =D13/Табель!$BT$3 -> 750 | F13: 1125 | G13: 93.75 | H13: 140.625 | I13: =E13/2 -> 375 | J13: 0 | K13: 0 | L13: =D13/2-K13-J13 -> 7500 | M13: =J13+K13+L13 -> 7500 | O13: =M13-J13-K13-N13 -> 7500 | Q13: =D13/2-P13+O13-#REF!-J13+Табель!BV5*F13+Табель!#REF!*G13+Табель!#REF!*H13-Табель!#REF!*E13-Табель!#REF!*I13-Табель!#REF!*I13-Табель!#REF!*E13 ->  | S13: 0 | T13: =IF((Q13-S13)<0, 0,Q13-S13) ->  | X13: 0 | Z13: =J13+M13+R13+V13+X13+Y13 ->  | AA13: Иванов О.В.
A14: Господарська група
A15: 3 | B15: Димов Андрей | C15: 4000 | D15: 6000 | E15: =D15/Табель!$BT$3 -> 300 | F15: =E15*1.5 -> 450 | G15: =E15/8 -> 37.5 | H15: =F15/8 -> 56.25 | I15: =E15/2 -> 150 | J15: 0 | L15: =D15/2-K15-J15 -> 3000 | M15: =J15+K15+L15 -> 3000 | O15: =M15-J15-K15-N15 -> 3000 | Q15: =D15/2-P15+O15-#REF!-J15+Табель!#REF!*F15+Табель!#REF!*G15+Табель!#REF!*H15-Табель!#REF!*E15-Табель!#REF!*I15-Табель!#REF!*I15-Табель!#REF!*E15 ->  | R15: =S15+T15+P15 ->  | S15: 0 | T15: =IF((Q15-S15)<0, 0,Q15-S15) ->  | U15: =Q15-(S15+T15) ->  | X15: 0 | Z15: =J15+M15+R15+V15+X15+Y15 ->  | AA15: Димов Андрей
A16: 4 | B16: Синика В.В. | C16: 0 | D16: 12000 | E16: =D16/Табель!$BT$3 -> 600 | F16: 900 | G16: 75 | H16: 112.5 | I16: 300 | J16: 0 | L16: =D16/2-K16-J16 -> 6000 | M16: =J16+K16+L16 -> 6000 | O16: =M16-J16-K16-N16 -> 6000 | Q16: =D16/2-P16+O16-#REF!-J16+Табель!#REF!*F16+Табель!#REF!*G16+Табель!#REF!*H16-Табель!#REF!*E16-Табель!#REF!*I16-Табель!#REF!*I16-Табель!#REF!*E16 ->  | R16: =S16+T16+P16 ->  | S16: 0 | X16: 0 | Z16: =J16+M16+R16+V16+X16+Y16 ->  | AA16: Синика
A17: 5 | B17: Белоус А | C17: 0 | D17: 6000 | E17: =D17/Табель!$BT$3 -> 300 | F17: 450 | G17: 37.5 | H17: 56.25 | I17: 150 | J17: 0 | K17: 0 | L17: =D17/2-K17-J17 -> 3000 | M17: =J17+K17+L17 -> 3000 | O17: 3000 | Q17: =D17/2-P17+O17-#REF!-J17+Табель!#REF!*F17+Табель!#REF!*G17+Табель!#REF!*H17-Табель!#REF!*E17-Табель!#REF!*I17-Табель!#REF!*I17-Табель!#REF!*E17 ->  | S17: 0 | X17: 0 | Z17: =J17+M17+R17+V17+X17+Y17 ->  | AA17: Белоус
A18: ГНБ
A19: 6 | B19: Пуха Е.А. | C19: 3840 | D19: 8000 | E19: =D19/Табель!$BT$3 -> 400 | F19: =E19*1.5 -> 600 | G19: =E19/8 -> 50 | H19: =F19/8 -> 75 | I19: =E19/2 -> 200 | J19: 0 | L19: =D19*0.25-J19 -> 2000 | M19: =J19+K19+L19 -> 2000 | O19: 2000 | Q19: =D19-M19-P19+O19-#REF!-J19+Табель!#REF!*F19+Табель!#REF!*G19+Табель!#REF!*H19-Табель!#REF!*E19-Табель!#REF!*I19-Табель!#REF!*I19-Табель!#REF!*E19 ->  | R19: =S19+T19+P19 ->  | S19: 0 | T19: =IF((Q19-S19)<0, 0,Q19-S19) ->  | U19: =Q19-(S19+T19) ->  | X19: 0 | Z19: =J19+M19+R19+V19+X19+Y19 ->  | AA19: Пуха Е.А.
A20: 7 | B20: Колбаса С.А. | C20: 1600 | D20: 10000 | E20: =D20/Табель!$BT$3 -> 500 | F20: =E20*1.5 -> 750 | G20: =E20/8 -> 62.5 | H20: =F20/8 -> 93.75 | I20: =E20/2 -> 250 | J20: 0 | L20: =D20*0.25-J20 -> 2500 | M20: 2500 | O20: 2500 | Q20: =D20-M20-P20+O20-#REF!-J20+Табель!#REF!*F20+Табель!#REF!*G20+Табель!#REF!*H20-Табель!#REF!*E20-Табель!#REF!*I20-Табель!#REF!*I20-Табель!#REF!*E20 ->  | R20: =S20+T20+P20 ->  | S20: 0 | T20: =IF((Q20-S20)<0, 0,Q20-S20) ->  | U20: =Q20-(S20+T20) ->  | X20: 0 | Z20: =J20+M20+R20+V20+X20+Y20 ->  | AA20: Колбаса С.А.
A21: СМтаЕ
A22: 8 | B22: Морозюк Н. | C22: =3900/2 -> 1950 | D22: 10000 | E22: =D22/Табель!$BT$3 -> 500 | F22: =E22*1.5 -> 750 | G22: =E22/8 -> 62.5 | H22: =F22/8 -> 93.75 | I22: =E22/2 -> 250 | J22: 0 | L22: =D22*0.25-J22 -> 2500 | M22: =J22+K22+L22 -> 2500 | O22: 2500 | Q22: =D22-M22-P22-#REF!-J22+O22+Табель!#REF!*F22+Табель!#REF!*G22+Табель!#REF!*H22-Табель!#REF!*E22-Табель!#REF!*I22-Табель!#REF!*I22-Табель!#REF!*E22 ->  | R22: =S22+T22+P22 ->  | S22: 0 | T22: =IF((Q22-S22)<0, 0,Q22-S22) ->  | U22: =Q22-(S22+T22) ->  | X22: 0 | Z22: =J22+M22+R22+V22+X22+Y22 ->  | AA22: Морозюк Н.
A23: 9 | B23: Плющев А.С. | C23: =3840 -> 3840 | D23: 8000 | E23: =D23/Табель!$BT$3 -> 400 | F23: =E23*1.5 -> 600 | G23: =E23/8 -> 50 | H23: 75 | I23: =E23/2 -> 200 | J23: 0 | L23: =D23*0.25-J23 -> 2000 | M23: =J23+K23+L23 -> 2000 | O23: 2000 | Q23: =D23-M23-P23-#REF!-J23+O23+Табель!#REF!*F23+Табель!#REF!*G23+Табель!#REF!*H23-Табель!#REF!*E23-Табель!#REF!*I23-Табель!#REF!*I23-Табель!#REF!*E23 ->  | R23: =S23+T23+P23 ->  | S23: 0 | T23: =IF((Q23-S23)<0, 0,Q23-S23) ->  | U23: =Q23-(S23+T23) ->  | X23: 0 | Z23: =J23+M23+R23+V23+X23+Y23 ->  | AA23: Плющев А.С.
A24: ЕТЛ
A25: 10 | B25: Кривошея Андрей | C25: 3300 | D25: 8000 | E25: =D25/Табель!$BT$3 -> 400 | F25: =E25*1.5 -> 600 | G25: =E25/8 -> 50 | H25: =F25/8 -> 75 | I25: =E25/2 -> 200 | J25: 0 | L25: =D25*0.25-J25 -> 2000 | M25: =J25+K25+L25 -> 2000 | O25: 2000 | Q25: =D25-M25-P25-#REF!-J25+O25+Табель!#REF!*F25+Табель!#REF!*G25+Табель!#REF!*H25-Табель!#REF!*E25-Табель!#REF!*I25-Табель!#REF!*I25-Табель!#REF!*E25 ->  | R25: =P25+S25+T25 ->  | S25: 0 | T25: =IF((Q25-S25)<0, 0,Q25-S25) ->  | U25: =Q25-(S25+T25) ->  | X25: 0 | Z25: =J25+M25+R25+V25+X25+Y25 ->  | AA25: Кривошея Андрей
A26: 11 | B26: Корж И.И. | C26: 3520 | D26: 10000 | E26: =D26/Табель!$BT$3 -> 500 | F26: =E26*1.5 -> 750 | G26: =E26/8 -> 62.5 | H26: =F26/8 -> 93.75 | I26: =E26/2 -> 250 | J26: 0 | L26: =D26*0.25-J26 -> 2500 | M26: =J26+K26+L26 -> 2500 | O26: 2500 | Q26: =D26-M26-P26-#REF!-J26+O26+Табель!#REF!*F26+Табель!#REF!*G26+Табель!#REF!*H26-Табель!#REF!*E26-Табель!#REF!*I26-Табель!#REF!*I26-Табель!#REF!*E26 ->  | R26: =P26+S26+T26 ->  | S26: 0 | T26: =IF((Q26-S26)<0, 0,Q26-S26) ->  | U26: =Q26-(S26+T26) ->  | X26: 0 | Z26: =J26+M26+R26+V26+X26+Y26 ->  | AA26: Корж И.И.
A27: 12 | B27: Карпов Д.П. | C27: 0 | E27: =D27/Табель!$BT$3 -> 0 | F27: 0 | G27: 0 | H27: 0 | I27: =E27/2 -> 0 | J27: 0 | K27: 0 | L27: =D27*0.25-J27 -> 0 | M27: =J27+K27+L27 -> 0 | O27: 0
A28: РМВЛ
A29: 13 | B29: Колпаков Денис | C29: 4700 | D29: 15000 | E29: =D29/Табель!$BT$3 -> 750 | F29: =E29*1.5 -> 1125 | G29: =E29/8 -> 93.75 | H29: =F29/8 -> 140.625 | I29: =E29/2 -> 375 | J29: 0 | M29: =J29+K29+L29 -> 0 | O29: 0 | Q29: =#REF!-#REF!-J29 ->  | R29: =P29+S29+T29 ->  | S29: 0 | T29: =IF((Q29-S29)<0, 0,Q29-S29) ->  | U29: =Q29-(S29+T29) ->  | Z29: =J29+M29+R29+V29+X29+Y29 ->  | AA29: Колпаков Денис
A30: 14 | B30: Чистяков А. | C30: 0 | D30: 0 | E30: 550 | F30: =E30*1.5 -> 825 | G30: 68.75 | H30: =F30/8 -> 103.125 | I30: =E30/2 -> 275 | J30: 0 | K30: 0 | M30: =J30+K30+L30 -> 0 | O30: 0 | Q30: =#REF!-#REF!-J30 ->  | R30: =P30+S30+T30 ->  | S30: 0 | T30: =IF((Q30-S30)<0, 0,Q30-S30) ->  | U30: =Q30-(S30+T30) ->  | AA30: Чистяков А.
A31: 15 | B31: Пукас Н. | C31: 4103 | D31: 0 | E31: 550 | F31: 825 | G31: 68.75 | H31: 103.125 | I31: 275 | J31: 0 | M31: 0 | O31: 0 | Q31: =#REF!-#REF!-J31 ->  | S31: 0 | AA31: Пукас Н.
A32: 16 | B32: Петлюк В. | C32: 0 | D32: 0 | E32: 550 | F32: 825 | G32: 68.75 | H32: 103.125 | I32: 275 | J32: 0 | K32: 0 | M32: 0 | O32: 0 | Q32: =#REF!-#REF!-J32 ->  | S32: 0 | AA32: Петлюк В.
A33: 17 | B33: Слободянюк А. | C33: 0 | D33: 0 | E33: 350 | F33: 525 | G33: 43.75 | H33: 65.625 | I33: 175 | J33: 0 | K33: 0 | M33: 0 | O33: 0 | Q33: =#REF!-#REF!-J33 ->  | S33: 0 | AA33: Горшков С.Ф.
A34: 18 | B34: Сыдько | C34: 0 | D34: 0 | E34: 450 | F34: 675 | G34: 56.25 | H34: 84.375 | I34: 225 | J34: 0 | K34: 0 | M34: 0 | O34: 0 | Q34: =#REF!-#REF!-J34 ->  | S34: 0 | AA34: Слободянюк А.
A35: 19 | B35: Трембич | C35: 0 | D35: 0 | E35: 450 | F35: 675 | G35: 56.25 | H35: 84.375 | I35: 225 | J35: 0 | K35: 0 | M35: 0 | O35: 0 | Q35: =#REF!-#REF!-J35 ->  | S35: 0 | AA35: Погорляк И.
A36: 20 | B36: Русин | C36: 0 | D36: 0 | E36: 450 | F36: 675 | G36: 56.25 | H36: 84.375 | I36: 225 | J36: 0 | K36: 0 | M36: 0 | O36: 0 | Q36: =#REF!-#REF!-J36 ->  | S36: 0 | AA36: Платонов Ю.В.
A37: 21 | B37: Булдик О.О. | C37: 0 | D37: 0 | E37: 450 | F37: 675 | G37: 56.25 | H37: 84.375 | I37: 225 | J37: 0 | K37: 0 | M37: 0 | O37: 0
A38: 22 | B38: Булдик О.В. | C38: 0 | D38: 0 | E38: 450 | F38: 675 | G38: 56.25 | H38: 84.375 | I38: 225 | J38: 0 | K38: 0 | M38: 0 | O38: 0
A39: ПТГ
A40: 23 | B40: Красовский Д.Н. | C40: 3950 | D40: 20000 | E40: =D40/Табель!$BT$3 -> 1000 | F40: =E40*1.5 -> 1500 | G40: =E40/8 -> 125 | H40: =F40/8 -> 187.5 | I40: =E40/2 -> 500 | J40: 0 | L40: =D40/2-K40-J40 -> 10000 | M40: =J40+K40+L40 -> 10000 | O40: 10000 | Q40: =D40/2-P40+O40-#REF!-J40 ->  | R40: =S40+T40+P40 ->  | S40: 0 | T40: =IF((Q40-S40)<0, 0,Q40-S40) ->  | U40: =Q40-(S40+T40) ->  | X40: 0 | Z40: =J40+M40+R40+V40+X40+Y40 ->  | AA40: Красовский
A41: 24 | B41: Скальский А.В. | C41: 3550 | D41: 10000 | E41: =D41/Табель!$BT$3 -> 500 | F41: =E41*1.5 -> 750 | G41: =E41/8 -> 62.5 | H41: =F41/8 -> 93.75 | I41: =E41/2 -> 250 | J41: 0 | L41: =D41/2-K41-J41 -> 5000 | M41: =J41+K41+L41 -> 5000 | O41: 5000 | Q41: =D41/2-P41+O41-#REF!-J41 ->  | R41: =S41+T41+P41 ->  | S41: 0 | T41: =IF((Q41-S41)<0, 0,Q41-S41) ->  | U41: =Q41-(S41+T41) ->  | X41: 0 | Z41: =J41+M41+R41+V41+X41+Y41 ->  | AA41: Скальский А.В.
A42: 25 | B42: Федій М.О. | C42: 4200 | E42: =D42/Табель!$BT$3 -> 0 | F42: 0 | G42: 0 | H42: 0 | I42: 0 | J42: 0 | L42: 0 | M42: 0 | O42: 0
A43: 26 | B43: Коптяева Лена | C43: 3900 | D43: 12000 | E43: =D43/Табель!$BT$3 -> 600 | F43: 900 | G43: 75 | H43: 112.5 | I43: 300 | J43: 0 | L43: 6000 | M43: 6000 | O43: 6000 | Q43: =D43/2-P43+O43-#REF!-J43 ->  | R43: =S43+T43+P43 ->  | S43: 0 | T43: =IF((Q43-S43)<0, 0,Q43-S43) ->  | U43: =Q43-(S43+T43) ->  | X43: 0 | Z43: =J43+M43+R43+V43+X43+Y43 ->  | AA43: Коптяева Лена
A44: Бухгалтерія
A45: 27 | B45: Гузенко Марина | C45: 3840 | D45: 8000 | E45: =D45/Табель!$BT$3 -> 400 | F45: =E45*1.5 -> 600 | G45: =E45/8 -> 50 | H45: 75 | I45: =E45/2 -> 200 | J45: 0 | L45: =D45/2-K45-J45 -> 4000 | M45: =J45+K45+L45 -> 4000 | O45: 4000 | Q45: =D45/2-P45+O45-#REF!-J45 ->  | R45: =S45+T45+P45 ->  | S45: 0 | T45: =IF((Q45-S45)<0, 0,Q45-S45) ->  | U45: =Q45-(S45+T45) ->  | X45: 0 | Z45: =J45+M45+R45+V45+X45+Y45 ->  | AA45: Гузенко Марина
A46: 28 | B46: Рябова К. | C46: 1675 | D46: 6000 | E46: =D46/Табель!$BT$3 -> 300 | F46: =E46*1.5 -> 450 | G46: 37.5 | H46: 56.25 | I46: =E46/2 -> 150 | J46: 0 | L46: =D46/2-K46-J46 -> 3000 | M46: =J46+K46+L46 -> 3000 | O46: 3000 | Q46: =D46/2-P46+O46-#REF!-J46 ->  | R46: =S46+T46+P46 ->  | S46: 0 | T46: =IF((Q46-S46)<0, 0,Q46-S46) ->  | U46: =Q46-(S46+T46) ->  | X46: 0 | Z46: =J46+M46+R46+V46+X46+Y46 ->  | AA46: Рябова О.
A47: 29 | B47: Дондук А. | C47: 0 | D47: 6000 | E47: =D47/Табель!$BT$3 -> 300 | F47: =E47*1.5 -> 450 | G47: 37.5 | H47: 56.25 | I47: =E47/2 -> 150 | J47: 0 | L47: 3000 | M47: =J47+K47+L47 -> 3000 | O47: 3000 | Q47: =D47/2-P47+O47-#REF!-J47 ->  | R47: =S47+T47+P47 ->  | S47: 0 | T47: =IF((Q47-S47)<0, 0,Q47-S47) ->  | U47: =Q47-(S47+T47) ->  | X47: 0 | Z47: =J47+M47+R47+V47+X47+Y47 ->  | AA47: Дондук Анна
A48: Всего | C48: =SUM(C6:C47) -> 76741 | D48: =SUM(D6:D47) -> 190000 | J48: =SUM(J6:J36) -> 0 | K48: =SUM(K6:K47) -> 0 | L48: =SUM(L6:L47) -> 74000 | M48: =SUM(M6:M47) -> 74000 | N48: =SUM(N6:N47) -> 0 | O48: =SUM(O6:O47) -> 74000 | P48: =SUM(P6:P36) -> 0 | Q48: =SUM(Q6:Q36) ->  | R48: =SUM(R6:R26) ->  | S48: =SUM(S6:S36) -> 0 | V48: 0 | X48: 0 | Y48: 0

Sheet Штрафы (hidden)
A1: № | B1: Ф.И.О. | C1: Дата | D1: Штраф/Поощрение % | F1: Комментарии
D2: Штраф | E2: Поощрение
A3: 1 | B3: Ландичев О.В. | D3: =SUM(D4:D8) -> 0 | E3: =SUM(E4:E8) -> 0
A9: 2 | B9: Іванов О.В. | D9: =SUM(D10:D14) -> 0 | E9: =SUM(E10:E14) -> 0
A15: 3 | B15: Димов А.В. | D15: =SUM(D16:D20) -> 0 | E15: =SUM(E16:E20) -> 0
A21: 4 | B21: Сініка В.В. | D21: =SUM(D22:D26) -> 0 | E21: =SUM(E22:E26) -> 0
A27: 5 | B27: Белоус А. | D27: =SUM(D28:D32) -> 0 | E27: =SUM(E28:E32) -> 0
A33: 6 | B33: Пуха Є.А. | D33: =SUM(D34:D38) -> 0 | E33: =SUM(E34:E38) -> 0
A39: 7 | B39: Колбаса С.А. | D39: =SUM(D40:D44) -> 0 | E39: =SUM(E40:E44) -> 0
A45: 8 | B45: Морозюк М.А. | D45: =SUM(D46:D50) -> 0 | E45: =SUM(E46:E50) -> 0
A51: 9 | B51: Плющев А.С. | D51: =SUM(D52:D56) -> 0 | E51: =SUM(E52:E56) -> 0
A57: 10 | B57: Кривошея А.В. | D57: =SUM(D58:D62) -> 0 | E57: =SUM(E58:E62) -> 0
A63: 11 | B63: Корж І.І. | D63: =SUM(D64:D68) -> 0 | E63: =SUM(E64:E68) -> 0
A69: 12 | B69: Карпов Д.П. | D69: =SUM(D70:D74) -> 0 | E69: =SUM(E70:E74) -> 0
A75: 13 | B75: Колпаков Д.А. | D75: =SUM(D76:D80) -> 0 | E75: =SUM(E76:E80) -> 0
A81: 14 | B81: Чистяков А.А. | D81: =SUM(D82:D86) -> 0 | E81: =SUM(E82:E86) -> 0
A87: 15 | B87: Пукас М.М. | D87: =SUM(D88:D92) -> 0 | E87: =SUM(E88:E92) -> 0
A93: 16 | B93: Петлюк В.П. | D93: =SUM(D94:D98) -> 0 | E93: =SUM(E94:E98) -> 0
A99: 17 | B99: Слободянюк А.В. | D99: =SUM(D100:D104) -> 0 | E99: =SUM(E100:E104) -> 0
A105: 18 | B105: Сидько І.А. | D105: =SUM(D106:D110) -> 0 | E105: =SUM(E106:E110) -> 0
A111: 19 | B111: Трембич С.К. | D111: =SUM(D112:D116) -> 0 | E111: =SUM(E112:E116) -> 0
A117: 20 | B117: Русин Н.Ф. | D117: =SUM(D118:D122) -> 0 | E117: =SUM(E118:E122) -> 0
A123: 21 | B123: Булдик О.О. | D123: =SUM(D124:D128) -> 0 | E123: =SUM(E124:E128) -> 0
A129: 22 | B129: Булдик О.Ф. | D129: =SUM(D130:D134) -> 0 | E129: =SUM(E130:E134) -> 0
A135: 22 | D135: =SUM(D136:D140) -> 0 | E135: =SUM(E136:E140) -> 0
A141: 22 | D141: =SUM(D142:D146) -> 0 | E141: =SUM(E142:E146) -> 0
A147: 22 | D147: =SUM(D148:D152) -> 0 | E147: =SUM(E148:E152) -> 0
A154: 21 | B154: Коптяєва О.В. | D154: =SUM(D155:D159) -> 0 | E154: =SUM(E155:E159) -> 0
A160: 22 | B160: Гузенко М.В. | D160: =SUM(D161:D165) -> 0 | E160: =SUM(E161:E165) -> 0
A166: 23 | B166: Рябова К.С. | D166: =SUM(D167:D171) -> 0 | E166: =SUM(E167:E171) -> 0
A172: 24 | B172: Дондук Г.В. | D172: =SUM(D173:D177) -> 0 | E172: =SUM(E173:E177) -> 0
